bitfinex-derivatives/quotes_ETHF0:USTF0_20250518
["timestamp","ask_amount","ask_price","bid_price","bid_amount"]
[1747561489673,8.299,2506.4,2506.2,3.70113561]
[1747561489867,9.09671,2506.4,2506.2,3.70113561]
[1747561490067,8.299,2506.4,2506.3,1.2512]
[1747561490269,8.299,2506.4,2506.2,2.44993561]
[1747561490270,0.79774,2506.3,2506.2,1.18613561]
[1747561490463,8.299,2506.5,2506.2,1.82363561]
[1747561490666,0.79768,2506.5,2506.2,1.82363561]
[1747561490876,8.299,2506.5,2506.2,1.82363561]
[1747561491078,9.09668,2506.5,2506.2,1.82363561]
[1747561491276,0.79771,2506.4,2506.2,1.82363561]
[1747561491573,0.79771,2506.4,2506.3,1.9153]
[1747561492177,0.79771,2506.4,2506.3,4.9733]
[1747561493775,0.79769,2506.5,2506.3,4.9733]
[1747561494577,0.7977,2506.4,2506.3,4.9733]
[1747561495075,6.52672,2506.9,2506.3,4.9733]
[1747561495283,0.7977,2506.4,2506.3,4.9733]
[1747561496575,0.7977,2506.4,2506.3,3.6937]
[1747561497589,2.0803,2506.4,2506.3,3.6937]
[1747561499184,0.69,2506.6,2506.3,3.6937]
[1747561499386,0.79767,2506.5,2506.4,1.2842]
[1747561499791,1.2826,2506.5,2506.4,1.2842]
[1747561499987,9.38166,2506.6,2506.4,1.2842]
[1747561500186,9.38166,2506.6,2506.4,4.3422]
[1747561500489,12.58939,2506.8,2506.5,0.79765]
[1747561500784,0.79761,2506.7,2506.6,1.2603]
[1747561500990,11.7918,2506.8,2506.6,2.05793]
[1747561501291,0.79761,2506.7,2506.6,1.2603]
[1747561501590,0.79764,2506.6,2506.5,3.058]
[1747561503785,1.42924,2506.6,2506.5,3.058]
[1747561505092,17.92364,2506.6,2506.5,3.058]
[1747561505799,8.585,2506.6,2506.5,3.058]
[1747561506002,17.12,2506.6,2506.5,3.058]
[1747561506298,8.585,2506.6,2506.5,3.058]
[1747561506498,8.585,2506.9,2506.5,11.31108]
[1747561506695,11.72267327,2507.1,2506.8,3.2078]
[1747561506894,11.72267327,2507.1,2507.0,0.79751]
[1747561507094,11.72267327,2507.1,2507.0,3.058]
[1747561507292,0.79748,2507.1,2507.0,4.3169]
[1747561507903,9.8958,2507.3,2507.0,4.3169]
[1747561508094,0.79748,2507.1,2507.0,4.3169]
[1747561508597,0.79746,2507.2,2507.0,3.058]
[1747561508801,0.79746,2507.2,2507.1,1.2589]
[1747561509507,9.38244,2507.3,2507.1,1.2589]
[1747561509697,0.79745,2507.2,2507.1,1.2589]
[1747561510205,4.12494774,2507.5,2507.3,0.7974]
[1747561510406,4.12494774,2507.5,2507.4,4.5409]
[1747561510797,4.12494774,2507.5,2507.4,10.33829]
[1747561511204,4.12494774,2507.5,2507.4,13.39629]
[1747561511205,0.98727447,2507.5,2507.4,13.39629]
[1747561511397,1.31337693,2507.7,2507.6,0.79732]
[1747561511599,1.31337693,2507.7,2507.6,5.79732]
[1747561511996,2.43894117,2508.0,2507.6,5.0]
[1747561512199,1.64172117,2508.0,2507.8,3.2078]
[1747561512405,0.98479667,2508.1,2507.9,1.371]
[1747561512704,0.79719,2508.0,2507.9,1.371]
[1747561513303,0.79719,2508.0,2507.9,4.429]
[1747561513698,2.06799,2508.0,2507.9,4.429]
[1747561514205,1.78198667,2508.1,2507.9,5.22622]
[1747561514505,1.78195667,2508.1,2507.9,5.22621]
[1747561514707,0.98479667,2508.1,2507.9,5.22621]
[1747561515004,0.98479667,2508.1,2508.0,0.79719]
[1747561515200,0.98479667,2508.1,2508.0,2.16819]
[1747561515403,1.78195667,2508.1,2508.0,1.371]
[1747561516107,0.98479667,2508.1,2508.0,4.429]
[1747561516405,0.98479667,2508.1,2508.0,5.22619]
[1747561516705,2.06791,2508.3,2508.1,0.79715]
[1747561516907,8.583,2508.4,2508.0,4.429]
[1747561517103,0.7971,2508.3,2508.0,5.22617]
[1747561517295,0.79713,2508.2,2508.0,5.22617]
[1747561517499,0.79712,2508.3,2508.0,5.22617]
[1747561517702,0.79712,2508.3,2508.1,0.79716]
[1747561517896,2.62857,2508.7,2508.1,0.79716]
[1747561517897,0.6361,2508.7,2508.2,2.05391]
[1747561518107,2.08722,2508.6,2508.3,2.05389]
[1747561518302,1.2902,2508.6,2508.3,1.2568]
[1747561518508,8.582,2508.7,2508.6,0.797]
[1747561518704,3.8655,2508.8,2508.6,0.797]
[1747561518899,3.8655,2508.8,2508.7,1.3095]
[1747561519300,3.2078,2508.8,2508.7,1.3095]
[1747561520006,5.32884,2508.8,2508.7,1.3095]
[1747561520607,4.5319,2508.8,2508.7,1.3095]
[1747561520908,5.32884,2508.8,2508.7,1.3095]
[1747561521111,4.5319,2508.8,2508.7,1.3095]
[1747561521604,5.32884,2508.8,2508.7,1.3095]
[1747561521794,0.79694,2508.8,2508.7,1.3095]
[1747561522001,0.79697,2508.7,2508.6,3.7125]
[1747561522200,0.79697,2508.7,2508.6,0.6545]
[1747561523009,2.15527,2508.7,2508.6,0.6545]
[1747561523507,0.797,2508.6,2508.5,3.058]
[1747561523802,1.3583,2508.6,2508.5,3.058]
[1747561524009,1.3583,2508.6,2508.5,3.85504]
[1747561524198,2.0126,2508.8,2508.5,3.058]
[1747561524400,10.5926,2508.8,2508.7,0.79697]
[1747561524710,10.5926,2508.8,2508.6,2.16428]
[1747561525095,8.58,2508.8,2508.7,1.3673]
[1747561525502,3.2078,2508.9,2508.7,1.3673]
[1747561525703,4.00472,2508.9,2508.7,1.3673]
[1747561526309,0.79691,2508.9,2508.7,1.3673]
[1747561527007,0.79694,2508.8,2508.7,1.3673]
[1747561527311,0.79693,2508.9,2508.7,1.3673]
[1747561527514,0.79693,2508.9,2508.7,2.16426]
[1747561527706,0.79693,2508.9,2508.8,1.2666]
[1747561527906,1.3272,2509.0,2508.8,1.2666]
[1747561528106,0.79691,2508.9,2508.8,4.3246]
[1747561528403,0.79691,2508.9,2508.8,5.12154]
[1747561528612,0.79691,2508.9,2508.8,4.3246]
[1747561529205,0.79691,2508.9,2508.8,5.12154]
[1747561529407,0.79691,2508.9,2508.8,4.3246]
[1747561530604,0.79687,2509.1,2509.0,0.79686]
[1747561531011,3.2078,2509.3,2509.1,0.79684]
[1747561531213,4.00458,2509.3,2509.2,1.9844]
[1747561531405,5.29618,2509.3,2509.2,1.9844]
[1747561533008,4.4994,2509.3,2509.2,1.9844]
[1747561533310,5.29618,2509.3,2509.2,1.9844]
[1747561535107,4.4994,2509.3,2509.2,1.9844]
[1747561535311,5.29618,2509.3,2509.2,1.9844]
[1747561537120,4.4994,2509.3,2509.2,1.9844]
[1747561537614,8.511,2509.4,2509.2,1.9844]
[1747561537913,26.805,2509.8,2509.3,2.06496]
[1747561538110,0.79675,2509.4,2509.3,1.2682]
[1747561538419,8.51,2509.7,2509.1,6.2658]
[1747561538420,0.79681,2509.2,2509.1,6.2658]
[1747561538609,0.79681,2509.2,2509.1,3.058]
[1747561539211,0.79685,2509.1,2509.0,4.41838003]
[1747561539413,0.83662,2509.1,2509.0,4.41838003]
[1747561541322,0.83662,2509.1,2509.0,3.15018003]
[1747561541821,10.59822,2509.1,2509.0,3.15018003]
[1747561545710,2.08922,2509.1,2509.0,3.15018003]
[1747561547021,0.03977,2509.1,2509.0,3.15018003]
[1747561547222,0.83662,2509.1,2509.0,4.51988003]
[1747561547411,0.03977,2509.1,2509.0,5.31676003]
[1747561548012,0.03977,2509.1,2509.0,10.31676003]
[1747561548411,0.03977,2509.1,2509.0,18.72776003]
[1747561550120,3.15131466,2509.4,2509.3,0.79678]
[1747561550318,3.34663844,2509.4,2509.3,4.00458]
[1747561551221,3.15131466,2509.4,2509.3,7.69828]
[1747561552619,0.79662,2509.8,2509.3,12.69828]
[1747561552817,7.39874753,2509.9,2509.4,1.3594]
[1747561553131,7.39874753,2509.9,2509.6,3.2078]
[1747561553419,8.19536753,2509.9,2509.7,2.79003]
[1747561553625,8.19533753,2509.9,2509.8,1.3594]
[1747561553820,8.19533753,2509.9,2509.8,2.15602]
[1747561554025,5.51254753,2509.9,2509.8,2.15602]
[1747561554227,5.51254753,2509.9,2509.8,5.87382]
[1747561554419,6.30913753,2509.9,2509.8,5.0772]
[1747561554619,5.51254753,2509.9,2509.8,5.87382]
[1747561555928,6.30913753,2509.9,2509.8,5.87382]
[1747561556221,5.51254753,2509.9,2509.8,5.87382]
[1747561557321,0.79657,2510.0,2509.9,0.79659]
[1747561557520,0.79657,2510.0,2509.9,2.04659]
[1747561558219,0.79657,2510.0,2509.9,5.10459]
[1747561558726,0.79655,2510.1,2510.0,0.79655]
[1747561559228,0.79655,2510.1,2510.0,3.85455]
[1747561559928,0.79652,2510.2,2510.0,3.85455]
[1747561560119,1.3022,2510.1,2510.0,3.85455]
[1747561561316,0.6657,2510.3,2510.1,0.79652]
[1747561561520,2.82388,2510.3,2510.1,1.2687]
[1747561561722,2.82388,2510.3,2510.1,2.06521]
[1747561561920,0.7965,2510.2,2510.1,2.06521]
[1747561562220,1.3617,2510.2,2510.1,0.79651]
[1747561563028,2.1582,2510.2,2510.1,0.79651]
[1747561563234,1.3617,2510.2,2510.1,0.79651]
[1747561563927,1.3617,2510.2,2510.1,2.08331]
[1747561564527,6.35136802,2510.5,2510.1,1.2868]
[1747561564528,7.14778802,2510.5,2510.1,1.2868]
[1747561564828,1.9745,2510.4,2510.2,1.2868]
[1747561565028,1.9745,2510.4,2510.2,2.08329]
[1747561565627,1.9745,2510.4,2510.3,1.2868]
[1747561566126,1.9745,2510.4,2510.3,4.3448]
[1747561566431,2.77093,2510.4,2510.3,4.3448]
[1747561567830,5.97873,2510.4,2510.3,3.058]
[1747561569631,2.77093,2510.4,2510.3,3.058]
[1747561569833,5.97873,2510.4,2510.3,3.058]
[1747561571133,2.77093,2510.4,2510.3,3.058]
[1747561571332,5.97873,2510.4,2510.3,3.058]
[1747561572236,2.77093,2510.4,2510.3,3.058]
[1747561573337,1.47683,2510.4,2510.3,3.058]
[1747561573633,0.6804,2510.4,2510.3,3.058]
[1747561573832,1.47683,2510.4,2510.3,5.0076]
[1747561574032,0.6804,2510.4,2510.3,5.0076]
[1747561574232,2.46234902,2510.4,2510.3,5.0076]
[1747561575431,0.98551902,2510.4,2510.3,5.80406]
[1747561576432,0.98551902,2510.4,2510.3,10.80406]
[1747561577936,0.79641,2510.5,2510.4,0.79643]
[1747561578136,0.79641,2510.5,2510.4,5.20853]
[1747561578337,0.79639,2510.6,2510.5,0.79638]
[1747561578539,0.79635,2510.7,2510.6,0.79634]
[1747561578742,3.94301566,2510.8,2510.7,0.79634]
[1747561579839,3.14667566,2510.8,2510.7,0.79634]
[1747561580441,4.13219468,2510.9,2510.8,0.79631]
[1747561580641,4.13219468,2510.9,2510.8,4.00411]
[1747561581136,4.13219468,2510.9,2510.8,7.06211]
[1747561581931,4.13219468,2510.9,2510.8,15.39311]
[1747561582136,4.13219468,2510.9,2510.8,7.06211]
[1747561582337,4.13219468,2510.9,2510.8,15.26611]
[1747561582538,4.13219468,2510.9,2510.8,6.2658]
[1747561582539,4.92846468,2510.9,2510.8,6.2658]
[1747561582738,4.92846468,2510.9,2510.8,3.058]
[1747561583247,6.28616468,2510.9,2510.8,3.058]
[1747561583940,3.13948902,2510.9,2510.8,3.85431]
[1747561584831,2.15397,2510.9,2510.8,3.85431]
[1747561585136,1.3577,2510.9,2510.8,3.85431]
[1747561585337,2.15397,2510.9,2510.8,3.85431]
[1747561586141,2.15397,2510.9,2510.8,3.058]
[1747561586344,0.79637,2510.6,2510.5,40.8]
[1747561586545,0.79633,2510.8,2510.6,0.79635]
[1747561586736,0.79633,2510.8,2510.7,0.79634]
[1747561586737,1.3221,2510.8,2510.7,0.79634]
[1747561587446,1.3221,2510.8,2510.6,3.6814]
[1747561587647,0.79634,2510.7,2510.6,3.058]
[1747561587849,2.11842,2510.8,2510.6,3.85437]
[1747561588239,2.11842,2510.8,2510.6,0.79637]
[1747561589050,2.11842,2510.8,2510.6,2.10247]
[1747561590239,0.79634,2510.7,2510.6,1.3061]
[1747561590441,1.3746,2510.7,2510.6,1.3061]
[1747561590735,1.3746,2510.7,2510.6,2.10247]
[1747561592153,5.33237,2511.0,2510.8,0.7963]
[1747561592343,1.3312,2510.9,2510.8,0.7963]
[1747561592543,1.3312,2510.9,2510.8,2.0503]
[1747561593148,1.3312,2510.9,2510.8,4.312]
[1747561593851,2.12747,2510.9,2510.8,4.312]
[1747561594051,1.3312,2510.9,2510.8,4.312]
[1747561594252,2.12747,2510.9,2510.8,4.312]
[1747561596156,5.33527,2510.9,2510.8,3.058]
[1747561596345,2.12747,2510.9,2510.8,3.058]
[1747561598754,15.41347,2510.9,2510.8,0.90374087]
[1747561598951,0.79634,2510.7,2510.6,0.09218003]
[1747561599147,4.00414,2510.7,2510.6,0.09218003]
[1747561599348,9.00414,2510.7,2510.6,0.09218003]
[1747561599749,12.15081566,2510.7,2510.6,0.09218003]
[1747561602060,13.51941566,2510.7,2510.6,0.09218003]
[1747561602859,30.03741566,2510.7,2510.6,0.09218003]
[1747561603353,21.89074,2510.7,2510.6,0.09218003]
[1747561603657,5.37274,2510.7,2510.6,0.09218003]
[1747561603853,21.88374,2510.7,2510.6,0.09218003]
[1747561606452,25.01241566,2510.7,2510.6,0.09218003]
[1747561606659,8.51941566,2510.7,2510.6,0.09218003]
[1747561606847,25.01141566,2510.7,2510.6,0.09218003]
[1747561610254,28.06941566,2510.7,2510.6,0.09218003]
[1747561611161,25.01141566,2510.7,2510.6,0.09218003]
[1747561613361,30.01141566,2510.7,2510.6,3e-08]
[1747561613660,26.86474,2510.7,2510.6,3e-08]
[1747561614163,29.92274,2510.7,2510.6,3e-08]
[1747561617961,8.43074,2510.7,2510.6,3e-08]
[1747561618264,21.80974,2510.7,2510.6,3e-08]
[1747561619068,21.81974,2510.7,2510.6,3e-08]
[1747561619663,5.37274,2510.7,2510.6,3e-08]
[1747561619865,21.81474,2510.7,2510.6,3e-08]
[1747561620561,24.96075818,2510.7,2510.6,3e-08]
[1747561621271,28.01875818,2510.7,2510.6,3e-08]
[1747561622463,11.57675818,2510.7,2510.6,3e-08]
[1747561622970,10.20815818,2510.7,2510.6,3e-08]
[1747561623165,23.45615818,2510.7,2510.6,3e-08]
[1747561623365,7.15015818,2510.7,2510.6,3e-08]
[1747561623566,23.45615818,2510.7,2510.6,3e-08]
[1747561625972,7.15015818,2510.7,2510.6,3e-08]
[1747561626170,23.44115818,2510.7,2510.6,3e-08]
[1747561627071,26.49915818,2510.7,2510.6,3e-08]
[1747561627266,31.49915818,2510.7,2510.6,3e-08]
[1747561628185,28.35314,2510.7,2510.6,3e-08]
[1747561628478,0.79653,2510.1,2510.0,1.3219]
[1747561628680,20.29633,2510.1,2510.0,1.3219]
[1747561628978,0.79656,2510.0,2509.9,1.3302]
[1747561629175,3.85456,2510.0,2509.9,1.3302]
[1747561631481,7.00628272,2510.0,2509.9,1.3302]
[1747561632082,23.28628272,2510.0,2509.9,1.3302]
[1747561634285,20.13456,2510.0,2509.9,1.3302]
[1747561634489,3.85456,2510.0,2509.9,1.3302]
[1747561634689,20.12256,2510.0,2509.9,1.3302]
[1747561635384,20.11656,2510.0,2509.9,1.3302]
[1747561635582,21.49076,2510.0,2509.9,1.3302]
[1747561636680,0.79665,2509.7,2509.6,1.2715]
[1747561636885,0.79665,2509.7,2509.6,1.9447]
[1747561637079,3.85465,2509.7,2509.6,1.9447]
[1747561638784,3.058,2509.7,2509.6,2.74139]
[1747561638987,3.058,2509.7,2509.6,7.74139]
[1747561639187,3.2078,2509.8,2509.6,6.9447]
[1747561639384,3.2078,2509.8,2509.7,2.08825]
[1747561639689,3.15172272,2509.9,2509.8,0.79662]
[1747561639886,3.15172272,2509.9,2509.8,2.08822]
[1747561640082,3.15172272,2509.9,2509.8,7.08822]
[1747561641082,3.94831272,2509.9,2509.8,6.2916]
[1747561641591,0.79659,2509.9,2509.8,6.2916]
[1747561642691,0.79659,2509.9,2509.8,7.08822]
[1747561643998,0.79659,2509.9,2509.8,6.2916]
[1747561644195,0.79659,2509.9,2509.8,1.2916]
[1747561645092,3.85459,2509.9,2509.8,1.2916]
[1747561646997,20.08559,2509.9,2509.8,1.2916]
[1747561648705,19.289,2509.9,2509.8,1.2916]
[1747561649207,16.231,2509.9,2509.8,1.2916]
[1747561649906,16.216,2509.9,2509.8,1.2916]
[1747561650107,3.85459,2509.9,2509.8,1.2916]
[1747561650706,11.91459,2509.9,2509.8,1.2916]
[1747561650907,3.85459,2509.9,2509.8,1.2916]
[1747561651107,8.85659,2509.9,2509.8,1.2916]
[1747561651804,0.79659,2509.9,2509.8,1.2916]
[1747561652109,0.79653,2510.1,2509.9,0.79656]
[1747561652409,0.79653,2510.1,2510.0,1.2647]
[1747561653405,0.79653,2510.1,2510.0,2.06126]
[1747561653606,0.79653,2510.1,2510.0,1.2647]
[1747561653910,0.79653,2510.1,2510.0,2.06124]
[1747561654207,18.11034,2510.1,2509.5,3.2078]
[1747561654408,0.79659,2509.9,2509.8,1.2647]
[1747561654908,0.79659,2509.9,2509.8,1.35688003]
[1747561655104,0.79655,2510.1,2509.9,0.79658]
[1747561655306,3.94827272,2510.1,2510.0,1.9222]
[1747561657111,3.15172272,2510.1,2510.0,2.71876]
[1747561657311,3.15172272,2510.1,2510.0,1.9222]
[1747561658114,3.94825272,2510.1,2510.0,1.9222]
[1747561658413,3.94825272,2510.1,2510.0,2.71876]
[1747561658611,3.15172272,2510.1,2510.0,2.71876]
[1747561659006,0.79651,2510.2,2510.0,2.71876]
[1747561659311,0.79651,2510.2,2510.1,1.3572]
[1747561659907,0.79651,2510.2,2510.1,2.15373]
[1747561660116,11.21172272,2510.4,2510.1,1.3572]
[1747561660309,19.28872272,2510.4,2510.3,0.79646]
[1747561660510,19.28872272,2510.4,2510.2,2.77498]
[1747561660706,0.79646,2510.3,2510.2,1.9785]
[1747561661114,2.06816,2510.3,2510.2,1.9785]
[1747561662312,2.06816,2510.3,2510.2,2.775]
[1747561663215,1.2717,2510.3,2510.2,2.775]
[1747561663715,2.06816,2510.3,2510.2,2.775]
[1747561664209,1.2717,2510.3,2510.2,2.775]
[1747561664915,2.06816,2510.3,2510.2,2.775]
[1747561665116,0.79645,2510.4,2510.3,0.79644]
[1747561665312,0.79645,2510.4,2510.3,2.16474]
[1747561667115,2.08245,2510.4,2510.3,2.16474]
[1747561667607,1.286,2510.4,2510.3,2.16474]
[1747561668109,8.059,2510.5,2510.4,0.79643]
[1747561668308,0.671,2510.6,2510.5,0.7964]
[1747561668309,1.4674,2510.6,2510.5,0.7964]
[1747561668512,9.3729,2510.6,2510.5,0.7964]
[1747561668713,9.3729,2510.6,2510.5,2.7492]
[1747561669417,10.16927,2510.6,2510.5,2.7492]
[1747561670111,10.16927,2510.6,2510.5,1.9528]
[1747561670312,0.79645,2510.4,2510.2,0.6213]
[1747561670513,0.79645,2510.4,2510.2,3.42977]
[1747561670814,0.79642,2510.5,2510.1,3.2078]
[1747561671015,0.79643,2510.4,2510.3,0.79644]
[1747561671217,2.10912,2510.5,2510.4,0.79643]
[1747561671714,2.10912,2510.5,2510.3,2.15064]
[1747561671920,0.79643,2510.4,2510.3,2.15064]
[1747561672120,1.3127,2510.5,2510.3,2.15064]
[1747561673124,0.79643,2510.4,2510.3,1.3542]
[1747561673922,0.79643,2510.4,2510.2,2.07427]
[1747561674127,1.2877,2510.3,2510.2,2.07427]
[1747561674321,1.9275,2510.3,2510.2,2.07427]
[1747561674615,1.9275,2510.3,2510.2,2.0743]
[1747561675020,1.9275,2510.3,2510.2,3.3374]
[1747561675221,0.79644,2510.4,2510.3,0.79646]
[1747561675422,0.79644,2510.4,2510.3,2.05956]
[1747561675722,0.79644,2510.4,2510.3,1.2631]
[1747561675914,2.08414,2510.4,2510.3,1.2631]
[1747561676429,9.49522,2510.5,2510.3,2.05954]
[1747561676720,9.49522,2510.5,2510.4,0.79643]
[1747561676920,9.49522,2510.5,2510.4,2.05653]
[1747561677119,12.55322,2510.5,2510.4,2.05653]
[1747561677623,12.55322,2510.5,2510.4,1.2601]
[1747561677922,0.79646,2510.3,2510.2,2.07428]
[1747561678119,0.79646,2510.3,2510.2,3.33438]
[1747561678624,12.55321,2510.5,2510.4,0.79643]
[1747561679126,11.117,2510.5,2510.3,2.05655]
[1747561679320,0.79643,2510.4,2510.3,2.05655]
[1747561680320,2.07083,2510.4,2510.3,1.2601]
[1747561681325,1.2744,2510.4,2510.3,2.05656]
[1747561681521,2.07083,2510.4,2510.3,2.05656]
[1747561681825,2.07083,2510.4,2510.3,1.2601]
[1747561682028,0.79646,2510.3,2510.2,1.2778]
[1747561682222,0.7965,2510.2,2510.1,3.2078]
[1747561682524,0.79659,2509.9,2509.8,3.2078]
[1747561682926,0.79659,2509.9,2509.7,3.97327561]
[1747561683128,1.3509,2509.8,2509.7,2.78714]
[1747561683830,2.14752,2509.8,2509.7,1.9905]
[1747561684129,2.78982,2509.8,2509.7,2.78715]
[1747561684731,1.9932,2509.8,2509.7,2.78715]
[1747561685934,2.78982,2509.8,2509.7,2.78715]
[1747561686132,1.9932,2509.8,2509.7,2.78715]
[1747561686635,2.78982,2509.8,2509.7,1.9905]
[1747561687030,0.79669,2509.6,2509.5,3.2078]
[1747561687427,1.9247,2509.7,2509.5,3.2078]
[1747561687428,10.81338,2509.7,2509.5,4.00452]
[1747561687635,2.05859,2509.6,2509.5,3.2078]
[1747561690325,0.79675,2509.4,2509.3,1.2617]
[1747561690527,0.79678,2509.3,2509.2,3.8613]
[1747561690731,0.6304,2509.3,2509.2,3.8613]
[1747561691130,1.9147,2509.3,2509.2,3.8613]
[1747561691631,1.9147,2509.3,2509.2,5.91981]
[1747561692037,2.71148,2509.3,2509.2,5.91981]
[1747561692634,1.9147,2509.3,2509.2,5.91981]
[1747561693132,0.79674,2509.5,2509.3,0.79678]
[1747561693334,0.79674,2509.5,2509.3,2.06348]
[1747561693536,0.79675,2509.4,2509.3,2.06348]
[1747561693837,0.79678,2509.3,2509.2,4.65809]
[1747561695336,0.79678,2509.3,2509.2,3.8613]
[1747561695630,0.79678,2509.3,2509.2,3.2078]
[1747561697135,0.79678,2509.3,2509.2,4.00461]
[1747561697331,0.79678,2509.3,2509.2,3.2078]
[1747561697930,1.3736,2509.4,2509.3,0.79678]
[1747561698232,0.79678,2509.3,2509.2,4.0046]
[1747561698433,2.17037,2509.4,2509.2,4.0046]
[1747561699135,1.3736,2509.4,2509.2,4.0046]
[1747561699332,1.3736,2509.4,2509.2,3.2078]
[1747561699531,0.79678,2509.3,2509.2,4.09678003]
[1747561700337,1.3736,2509.4,2509.2,4.09678003]
[1747561700633,0.79678,2509.3,2509.2,4.09678003]
[1747561701036,2.17037,2509.4,2509.3,0.79678]
[1747561701234,1.3736,2509.4,2509.2,3.29998003]
[1747561701434,0.79678,2509.3,2509.2,4.09678003]
[1747561701734,8.89071,2509.6,2509.2,3.29998003]
[1747561701933,8.89071,2509.6,2509.5,0.79672]
[1747561702136,0.79671,2509.6,2509.5,0.79672]
[1747561702336,10.14,2509.8,2509.2,5.29200003]
[1747561702533,0.79666,2509.7,2509.6,0.79667]
[1747561702925,0.79668,2509.7,2509.6,0.79669]
[1747561703334,10.93664,2509.8,2509.7,0.79665]
[1747561703634,0.79665,2509.7,2509.6,0.79667]
[1747561704338,10.14,2509.8,2509.2,3.2078]
[1747561704635,0.79676,2509.4,2509.3,0.79676]
[1747561704834,0.79673,2509.5,2509.4,0.79673]
[1747561705034,0.79677,2509.4,2509.3,0.79677]
[1747561705229,0.79674,2509.5,2509.4,0.79674]
[1747561705633,0.7967,2509.6,2509.5,0.7967]
[1747561706133,8.094,2509.7,2509.2,3.2078]
[1747561706134,0.79674,2509.5,2509.4,0.79674]
[1747561706339,8.094,2509.7,2509.2,3.2078]
[1747561706340,0.79678,2509.3,2509.2,3.2078]
[1747561707135,2.12948,2509.3,2509.2,4.00461]
[1747561707342,2.12948,2509.3,2509.2,3.2078]
[1747561708041,1.3327,2509.3,2509.2,4.00461]
[1747561708342,2.12948,2509.3,2509.2,4.00461]
[1747561708744,9.4267,2509.3,2508.9,3.2078]
[1747561708944,0.79688,2509.1,2508.8,0.79692]
[1747561709245,0.79692,2508.9,2508.6,3.2078]
[1747561709445,2.632,2509.0,2508.7,1.2631]
[1747561709641,6.5329,2508.8,2508.5,0.09218003]
[1747561709847,0.797,2508.6,2508.5,0.09218003]
[1747561710445,5.797,2508.6,2508.5,0.09218003]
[1747561710638,7.1556,2508.6,2508.5,0.09218003]
[1747561710838,0.79704,2508.5,2508.4,1.18906924]
[1747561711035,25.26214,2508.5,2508.4,1.18906924]
[1747561711442,0.79715,2508.2,2507.9,2.09931]
[1747561711641,1.3586,2508.1,2508.0,0.79719]
[1747561712038,1.3586,2508.1,2507.9,1.3021]
[1747561712344,1.3586,2508.1,2507.9,2.09932]
[1747561712547,1.3586,2508.1,2508.0,0.79719]
[1747561712847,1.3586,2508.1,2508.0,2.09929]
[1747561714649,1.3586,2508.1,2508.0,1.3021]
[1747561715349,0.79712,2508.3,2508.0,2.09929]
[1747561715645,0.79713,2508.2,2508.0,2.09929]
[1747561715847,0.79713,2508.2,2508.0,1.3021]
[1747561716146,0.79716,2508.1,2508.0,1.3021]
[1747561717549,0.79715,2508.2,2508.0,2.09929]
[1747561717743,0.79712,2508.3,2508.1,0.79716]
[1747561717949,2.12835,2508.2,2508.0,2.09928]
[1747561718247,1.3312,2508.2,2508.0,1.3021]
[1747561718447,0.79716,2508.1,2508.0,1.3021]
[1747561719050,2.12835,2508.2,2508.0,2.09929]
[1747561719347,2.12835,2508.2,2508.0,1.3021]
[1747561719547,2.12835,2508.2,2508.1,1.3704]
[1747561722449,2.12833,2508.2,2508.1,1.3704]
[1747561722843,1.3312,2508.2,2508.1,2.16756]
[1747561723149,2.12833,2508.2,2508.1,1.3704]
[1747561724853,1.3312,2508.2,2507.9,1.2871]
[1747561725044,0.79719,2508.0,2507.9,1.2871]
[1747561725247,0.79719,2508.0,2507.9,2.6505]
[1747561725449,2.78017,2508.1,2507.9,3.44771]
[1747561725648,0.79719,2508.0,2507.9,3.44771]
[1747561726654,0.79719,2508.0,2507.9,3.44772]
[1747561727343,0.79719,2508.0,2507.9,2.6505]
[1747561727547,2.06229,2508.0,2507.9,2.6505]
[1747561728454,0.79723,2507.9,2507.8,3.2078]
[1747561728653,2.14553,2507.9,2507.8,3.2078]
[1747561730852,18.77304,2508.1,2507.8,3.2078]
[1747561730853,0.6481,2508.1,2507.8,3.2078]
[1747561731057,8.081,2508.0,2507.9,1.39868003]
[1747561731557,8.081,2508.0,2507.9,2.19589003]
[1747561731857,8.87814,2508.2,2508.1,0.79716]
[1747561732256,0.79716,2508.1,2508.0,2.80539]
[1747561732552,0.79716,2508.1,2508.0,1.43369]
[1747561732751,0.79716,2508.1,2508.0,0.6365]
[1747561733356,2.16716,2508.1,2508.0,0.6365]
[1747561733860,0.79719,2508.0,2507.9,0.09218003]
[1747561734055,2.16719,2508.0,2507.9,0.09218003]
[1747561735764,2.16719,2508.0,2507.9,0.88941003]
[1747561736259,0.6278,2508.3,2507.9,0.88941003]
[1747561736450,8.082,2508.2,2508.1,0.79716]
[1747561736646,10.0638,2508.4,2507.9,0.09218003]
[1747561736849,2.81323,2508.3,2508.2,0.79713]
[1747561737049,2.81323,2508.3,2508.1,0.79714]
[1747561737555,2.81322,2508.3,2508.1,0.79714]
[1747561737756,2.81322,2508.3,2508.2,0.6885]
[1747561739861,0.79712,2508.3,2508.2,0.6885]
[1747561740067,0.7971,2508.3,2508.2,0.6885]
[1747561740272,3.3626,2508.3,2508.2,0.6885]
[1747561740659,0.79713,2508.2,2508.1,3.058]
[1747561740860,2.09443,2508.2,2508.1,3.058]
[1747561741057,6.35952272,2508.5,2508.1,3.058]
[1747561741261,8.081,2508.4,2508.3,0.7971]
[1747561741762,8.87807,2508.4,2508.2,0.79711]
[1747561741965,8.081,2508.4,2508.1,3.2078]